{"text_format":"3","workbook":"xlsx","n_sheets":1,"sheets":["Приложение 2"],"not_rendered":{"defined_names":2},"read":"whole","date_system":"1900"}

{"sheet":"Приложение 2","index":0,"n_rows":67,"n_cols":11,"rows_kept":67,"merged":[[4,1,4,10],[5,1,5,10],[6,1,6,10],[9,0,12,2],[9,3,12,3],[9,4,12,4],[9,5,12,5],[9,6,12,6],[9,10,12,10],[11,7,12,7],[11,8,12,8],[11,9,12,9],[13,0,15,0],[13,1,15,2],[13,3,15,3],[13,4,15,4],[13,5,15,5],[13,6,15,6],[13,10,15,10],[16,7,20,7],[16,8,20,8],[16,9,20,9],[19,10,20,10],[21,7,24,7],[21,8,24,8],[21,9,24,9],[26,7,29,7],[26,8,29,8],[26,9,29,9],[26,10,29,10],[30,0,31,0],[30,1,31,2],[30,3,31,3],[30,4,31,4],[30,5,31,5],[30,6,31,6],[30,7,31,10],[32,7,35,7],[32,8,35,8],[32,9,35,9],[32,10,35,10],[36,7,39,7],[36,8,39,8],[36,9,39,9],[36,10,39,10],[40,1,40,2],[40,7,40,10],[41,7,42,7],[41,8,42,8],[41,9,42,9],[41,10,42,10],[44,0,45,2],[45,5,45,6],[45,9,45,10],[49,9,49,10],[51,0,51,2],[60,1,60,3],[60,5,60,7],[64,1,65,3],[66,5,66,7]]}
[]
[]
[{"$nulls":10},"Приложение 2"]
[{"$nulls":10},"Таблица 2"]
[null,"Отчет об исполнении мероприятий муниципальной программы"]
[null," города Усолье-Сибирское \"Профилактика социально значимых заболеваний (туберкулез, ВИЧ\\СПИД, ИППП) и социально негативных явлений (алкоголизм, табакокурение) на территории города Усолье-Сибирское\"                                                                                                                на 2019-2025 годы за 2023 год"]
[]
["№ п/п","Наименование программы, подпрограммы, основных мероприятий и мероприятий","Ответсвенный исполниетль, соисполнители, участники","Источник финансирования","Объем финансирования, предусмотренный на 2023 год, руб.","Профинансировано за 2023 год, руб.","Процент исполнения (гр.6/гр.5*100), %","Наименование показателя объема мероприятия, единица измерения","Плановое значение показателя мероприятия на 2023 год","Фактическое значение показателя мероприятия за 2023 год","Обоснование причин отклонения (при наличии)"]
[1,2,3,4,5,6,7,8,9,10,11]
["Муниципальная программа города Усолье-Сибирское \"Профилактика социально значимых заболеваний (туберкулез, ВИЧ\\СПИД, ИППП) и социально негативных явлений (алкоголизм, табакокурение) на территории города Усолье-Сибирское\"                                                     на 2019-2025 годы ",null,null,"Бюджет города",{"$f":"E14+E31+E41","v":{"v":573150,"d":"573,150.00"}},{"$f":"F14+F31+F41","v":{"v":573150,"d":"573,150.00"}},{"$f":"F10/E10","v":{"v":1,"d":"100.00%"}},"х","х","х","х"]
[{"$nulls":7},"х","х","х"]
[{"$nulls":7},"х","х","х"]
[]
["1.","Подпрограмма 1. \"Профилактика социально значимых заболеваний (туберкулез, ВИЧ/СПИД, ИППП)\" на 2019-2025 годы",null,"Бюджет города",{"$f":"E17+E22+E27","v":{"v":136120,"d":"136,120.00"}},{"$f":"F17+F22+F27","v":{"v":136120,"d":"136,120.00"}},{"$f":"F14/E14","v":{"v":1,"d":"100.00%"}},"х","х","х","х"]
[{"$nulls":7},"х","х","х"]
[{"$nulls":7},"х","х","х"]
["1.1.","Основное мероприятие 1.1.\n\"Информирование населения о доступных мерах профилактики туберкулеза\"","ОК УСКВ","Бюджет города",{"$f":"SUM(E18:E21)","v":{"v":28025,"d":"28,025.00"}},{"$f":"SUM(F18:F21)","v":{"v":28025,"d":"28,025.00"}},{"$f":"F17/E17","v":{"v":1,"d":"100.00%"}},"\n\nКоличество информационных каналов передачи информации о доступных мерах профилактики туберкулеза.",3,3]
["1.2.1.","Мероприятие 1.1.1.\n«Информирование населения о доступных мерах профилактики туберкулеза в электронных СМИ »\n","ОК УСКВ","Бюджет города",{"v":0,"d":"0.00"},{"v":0,"d":"0.00"}]
["1.1.1.","Мероприятие 1.1.2.\n«Наружная социальная реклама о доступных мерах профилактики туберкулеза»\n\n","ОК УСКВ","Бюджет города",{"v":28025,"d":"28,025.00"},{"v":28025,"d":"28,025.00"},{"$f":"F19/E19","v":{"v":1,"d":"100.00%"}}]
["1.2.3.","Мероприятие 1.1.3.\n«Изготовление раздаточного материала о доступных мерах профилактики туберкулеза»\n\n","ОК УСКВ","Бюджет города",{"v":0,"d":"0.00"},{"v":0,"d":"0.00"}]
["1.2.4.","Мероприятие 1.1.4.\n«Проведение городских акций»\n\n","ОК УСКВ","Бюджет города",{"v":0,"d":"0.00"},{"v":0,"d":"0.00"}]
["1.2.","Основное мероприятие 1.2.\n\"Информирование населения о доступных мерах профилактики ВИЧ/СПИДа\"","ОК УСКВ","Бюджет города",{"$f":"SUM(E23:E26)","v":{"v":108095,"d":"108,095.00"}},{"$f":"SUM(F23:F26)","v":{"v":108095,"d":"108,095.00"}},{"$f":"F22/E22","v":{"v":1,"d":"100.00%"}},"\n\nКоличество информационных каналов передачи информации о доступных мерах профилактики ВИЧ/СПИДа.",3,3]
["1.3.1.","Мероприятие 1.2.1.\n«Информирование населения о доступных мерах профилактики ВИЧ/СПИДа в электронных СМИ »\n","ОК УСКВ","Бюджет города",{"v":0,"d":"0.00"},{"v":0,"d":"0.00"}]
["1.2.1.","Мероприятие 1.2.2.\n«Наружная социальная реклама о доступных мерах профилактики ВИЧ/СПИДа»\n\n","ОК УСКВ","Бюджет города",{"v":28025,"d":"28,025.00"},{"v":28025,"d":"28,025.00"},{"$f":"F24/E24","v":{"v":1,"d":"100.00%"}}]
["1.3.3.","Мероприятие 1.2.3.\n«Изготовление раздаточного материала о доступных мерах профилактики ВИЧ/СПИДа»\n\n","ОК УСКВ","Бюджет города",{"v":0,"d":"0.00"},{"v":0,"d":"0.00"}]
["1.2.2.","Мероприятие 1.2.4.\n«Проведение городских акций»\n\n","ОК УСКВ","Бюджет города",{"v":80070,"d":"80,070.00"},{"v":80070,"d":"80,070.00"},{"$f":"F26/E26","v":{"v":1,"d":"100.00%"}}]
["1.4.","Основное мероприятие 1.3.\n\"Информирование населения о доступных мерах профилактики ИППП\"","ОК УСКВ","Бюджет города",{"$f":"SUM(E28:E30)","v":{"v":0,"d":"0.00"}},{"$f":"SUM(F28:F30)","v":{"v":0,"d":"0.00"}},null,"\n\n\n\n\nКоличество информационных каналов передачи информации о доступных мерах профилактики ИППП.","\n\n\n\n\n\n1","\n\n\n\n\n\n1"]
["1.4.1.","Мероприятие 1.3.1.\n«Наружная социальная реклама о доступных мерах профилактики ИППП»\n\n","ОК УСКВ","Бюджет города",{"v":0,"d":"0.00"},{"v":0,"d":"0.00"}]
["1.4.2.","Мероприятие 1.3.2.\n«Изготовление раздаточного материала о доступных мерах профилактики ИППП»\n\n","ОК УСКВ","Бюджет города",{"v":0,"d":"0.00"},{"v":0,"d":"0.00"}]
["1.4.3.","Мероприятие 1.3.3.\n«Проведение городских акций»\n\n","ОК УСКВ","Бюджет города",{"v":0,"d":"0.00"},{"v":0,"d":"0.00"}]
["2.","Подпрограмма 2. \"Профилактика социально негативных явлений: алкоголизм, табакокурение\" на 2019 - 2025 годы",null,"Бюджет города",{"$f":"E33+E37","v":{"v":37030,"d":"37,030.00"}},{"$f":"F33+F37","v":{"v":37030,"d":"37,030.00"}},{"v":1,"d":"100%"}]
[]
["2.1.","Основное мероприятие 2.1.\n\"Информирование населения о доступных мерах профилактики алкоголизма\"","ОК УСКВ","Бюджет города",{"$f":"SUM(E34:E36)","v":{"v":28025,"d":"28,025.00"}},{"$f":"SUM(F34:F35)","v":{"v":28025,"d":"28,025.00"}},{"v":1,"d":"100%"},"\n\n\nКоличество информационных каналов передачи информации о доступных мерах профилактики алкоголизма.",1,1]
["2.1.1.","Мероприятие 2.1.1.\n«Наружная социальная реклама о доступных мерах профилактики алкоголизма»\n\n","ОК УСКВ","Бюджет города",{"v":28025,"d":"28,025.00"},{"v":28025,"d":"28,025.00"},{"v":1,"d":"100%"}]
["2.2.2.","Мероприятие 2.1.2.\n«Изготовление раздаточного материала о доступных мерах профилактики алкоголизма»\n\n","ОК УСКВ","Бюджет города",{"v":0,"d":"0.00"},{"v":0,"d":"0.00"}]
["2.2.3.","Мероприятие 2.1.3.\n«Проведение городских акций»\n\n","ОК УСКВ","Бюджет города",{"v":0,"d":"0.00"},{"v":0,"d":"0.00"}]
["2.2.","Основное мероприятие 2.2.\n\"Информирование населения о доступных мерах профилактики табакокурения\"","ОК УСКВ","Бюджет города",{"$f":"SUM(E38:E39)","v":{"v":9005,"d":"9,005.00"}},{"$f":"SUM(F38:F39)","v":{"v":9005,"d":"9,005.00"}},{"v":1,"d":"100%"},"\nКоличество информационных каналов передачи информации о доступных мерах профилактики табакокурения.",1,1]
["2.2.1.","Мероприятие 2.2.1.\n«Наружная социальная реклама о доступных мерах профилактики табакокурения»\n\n","ОК УСКВ","Бюджет города",{"v":9005,"d":"9,005.00"},{"v":9005,"d":"9,005.00"},{"v":1,"d":"100%"}]
["2.3.2.","Мероприятие 2.2.2.\n«Изготовление раздаточного материала о доступных мерах профилактики табакокурения»\n\n","ОК УСКВ","Бюджет города",{"v":0,"d":"0.00"},{"v":0,"d":"0.00"}]
["2.3.3.","Мероприятие 2.2.3.\n«Проведение городских акций»\n\n","ОК УСКВ","Бюджет города",{"v":0,"d":"0.00"},{"v":0,"d":"0.00"}]
["3.","Подпрограмма 3. \"Дополнительная социальная поддержка кадров здравоохранения города Усолье-Сибирское\" на 2019-2025 годы",null,"Бюджет города",{"v":400000,"d":"400,000.00"},{"v":400000,"d":"400,000.00"},{"v":1,"d":"100%"}]
["3.1.","Основное мероприятие 3.1.\n\"Создание условий для укрепления кадрового состава системы здравоохранения в городе Усолье-Сибирское\"","ОК УСКВ","Бюджет города",{"v":400000,"d":"400,000.00"},{"v":400000,"d":"400,000.00"},{"$f":"F42/E42","v":{"v":1,"d":"100.00%"}},"\n\n\n\nКоличество вновь привлеченных врачей-специалистов для работы в учреждениях здравоохранения города Усолье-Сибирское, получивших дополнительную социальную поддержку.",4,4]
["3.1.1.","Мероприятие 3.1.1.\n«Предоставление выплат учреждениям здравоохранения, осуществляющим свою деятельность на территории города Усолье-Сибирское на предоставление единовременной выплаты (подъемных) вновь привлеченным врачам-специалистам»","ОК УСКВ","Бюджет города",{"v":400000,"d":"400,000.00"},{"v":400000,"d":"400,000.00"},{"$f":"F43/E43","v":{"v":1,"d":"100.00%"}}]
[]
["И.о. мэр города "]
[{"$nulls":9},"Л.Н. Панькова"]
{"$rows_empty":14}
[null,"Глава администрации города Усолье-Сибирское",{"$nulls":3},"О.П. Жилкин"]
[]
[]
[null,"Копия верна"]
[null,"Начальник отдела учета и контроля документов"]
[]
[null,"и обращений граждан аппарата",{"$nulls":3},"С.А. Никитеев"]